fUSD/lending_fUSD_20260423
["ID","MTS","AMOUNT","RATE_DAILY","PERIOD"]
[421001995,1776898447015,500.0,7.848e-05,2]
[421001996,1776898447057,214.52520777,7.848e-05,2]
[421001997,1776898447131,500.0,7.848e-05,2]
[421001998,1776898447257,500.0,7.848e-05,2]
[421001999,1776898447327,500.0,7.848e-05,2]
[421002000,1776898458787,500.0,7.848e-05,2]
[421002001,1776898458827,500.0,7.848e-05,2]
[421002002,1776898458868,500.0,7.848e-05,2]
[421002003,1776898458908,500.0,7.848e-05,2]
[421002004,1776898458957,500.0,7.848e-05,2]
[421002005,1776898459019,500.0,7.848e-05,2]
[421002006,1776898459073,500.0,7.848e-05,2]
[421002007,1776898459131,500.0,7.848e-05,2]
[421002008,1776898459181,500.0,7.848e-05,2]
[421002009,1776898459237,179.53253075,7.848e-05,2]
[421002010,1776898459294,298.95226148,7.848e-05,2]
[421002011,1776898459335,201.04773852,7.848e-05,2]
[421002013,1776898476619,263.38166485,7.848e-05,2]
[421002014,1776898501154,1200.0,7.848e-05,2]
[421002015,1776898511933,153.0,7.848e-05,3]
[421002016,1776898512756,187.0,7.848e-05,3]
[421002017,1776898526338,317.60570643,7.848e-05,2]
[421002018,1776898568020,548.12170108,7.848e-05,2]
[421002019,1776898580076,151.0,7.846e-05,2]
[421002020,1776898621180,300.0,7.848e-05,2]
[421002021,1776898621807,150.0,7.848e-05,2]
[421002022,1776898622680,300.0,7.848e-05,2]
[421002023,1776898632088,177.0,7.848e-05,3]
[421002024,1776898681158,300.0,7.848e-05,2]
[421002025,1776898741267,300.0,7.848e-05,2]
[421002026,1776898750843,168.0,7.848e-05,3]
[421002027,1776898801200,1200.0,7.848e-05,2]
[421002028,1776898802028,150.0,7.848e-05,2]
[421002029,1776898807046,153.0,7.848e-05,3]
[421002030,1776898809605,160.0,7.848e-05,3]
[421002034,1776898869483,152.0,7.848e-05,3]
[421002035,1776898894604,1836.965,7.692e-05,2]
[421002036,1776898894755,155.933,7.692e-05,2]
[421002037,1776898921118,300.0,7.848e-05,2]
[421002038,1776898931517,152.0,7.848e-05,3]
[421002039,1776898937734,500.0,7.848e-05,2]
[421002040,1776898955232,500.0,7.848e-05,2]
[421002042,1776898973488,488.38459249,7.848e-05,2]
[421002043,1776898973515,11.61540751,7.848e-05,2]
[421002044,1776898981099,7650.664,7.749e-05,2]
[421002045,1776898981912,150.0,7.848e-05,2]
[421002046,1776898982834,500.0,7.848e-05,2]
[421002047,1776898982884,500.0,7.848e-05,2]
[421002048,1776898986313,152.0,7.848e-05,3]
[421002049,1776899106593,150.21880537,7.299e-05,2]
[421002050,1776899106748,150.0,7.299e-05,2]
[421002051,1776899106795,150.0,7.299e-05,2]
[421002052,1776899110281,150.0,7.299e-05,2]
[421002053,1776899110374,176.6837889,7.299e-05,2]
[421002054,1776899113640,167.61615929,7.299e-05,2]
[421002055,1776899113781,150.0,7.299e-05,2]
[421002056,1776899113913,150.0,7.299e-05,2]
[421002057,1776899117696,298.96442628,7.299e-05,2]
[421002058,1776899119251,150.0,7.299e-05,2]
[421002059,1776899119328,150.0,7.299e-05,2]
[421002060,1776899124195,150.0,7.299e-05,2]
[421002061,1776899124270,150.0,7.299e-05,2]
[421002062,1776899124342,150.0,7.372e-05,2]
[421002063,1776899124411,150.0,7.446e-05,2]
[421002064,1776899124533,150.0,7.52e-05,2]
[421002065,1776899124580,150.0,7.594e-05,2]
[421002066,1776899124612,150.0,7.667e-05,2]
[421002067,1776899133032,-150.0,7.704e-05,2]
[421002068,1776899147049,152.0,7.653e-05,7]
[421002070,1776899261560,-150.0,7.741e-05,2]
[421002071,1776899281117,300.0,7.748e-05,2]
[421002072,1776899341859,150.0,7.748e-05,2]
[421002073,1776899345779,500.0,7.748e-05,2]
[421002074,1776899345839,500.0,7.748e-05,2]
[421002075,1776899345872,400.16764544,7.748e-05,2]
[421002076,1776899345901,500.0,7.748e-05,2]
[421002078,1776899401126,300.0,7.748e-05,2]
[421002079,1776899401164,1200.0,7.748e-05,2]
[421002086,1776899431738,-2111.78030549,7.749e-05,2]
[421002087,1776899431749,-900.0,7.749e-05,2]
[421002088,1776899431843,-26160.457662,7.749e-05,2]
[421002089,1776899431897,-646059.84883251,7.749e-05,2]
[421002091,1776899431906,-56065.09,7.749e-05,2]
[421002093,1776899431915,-250.0,7.775e-05,2]
[421002095,1776899431925,-700.0,7.8e-05,2]
[421002097,1776899431934,-150.0,7.815e-05,2]
[421002098,1776899431943,-160.35239601,7.823e-05,2]
[421002100,1776899431953,-160.12319153,7.823e-05,2]
[421002102,1776899431962,-154.0,7.848e-05,3]
[421002103,1776899431971,-500.0,7.848e-05,2]
[421002104,1776899431980,-500.0,7.848e-05,2]
[421002105,1776899431990,-500.0,7.848e-05,2]
[421002106,1776899431999,-500.0,7.848e-05,2]
[421002107,1776899432009,-500.0,7.848e-05,2]
[421002108,1776899432018,-500.0,7.848e-05,2]
[421002109,1776899432031,-500.0,7.848e-05,2]
[421002110,1776899432040,-500.0,7.848e-05,2]
[421002111,1776899432050,-500.0,7.848e-05,2]
[421002112,1776899432059,-500.0,7.848e-05,2]
[421002113,1776899432069,-500.0,7.848e-05,2]
[421002114,1776899432078,-152.0,7.851e-05,7]
[421002115,1776899432087,-150.0,7.888e-05,2]
[421002116,1776899432097,-500.0,7.893e-05,2]
[421002117,1776899432106,-1500.0,7.9e-05,2]
[421002118,1776899432115,-150.0,7.962e-05,2]
[421002119,1776899432125,-2200.0,8e-05,2]
[421002120,1776899432135,-166.66,8.025e-05,2]
[421002121,1776899432144,-250.0,8.031e-05,2]
[421002122,1776899432154,-150.0,8.036e-05,2]
[421002123,1776899432164,-234.13117685,8.093e-05,2]
[421002124,1776899432173,-2384.0,8.11e-05,2]
[421002125,1776899432182,-150.0,8.11e-05,2]
[421002126,1776899432191,-150.0,8.11e-05,2]
[421002127,1776899432200,-150.0,8.11e-05,2]
[421002128,1776899432210,-151.0,8.116e-05,2]
[421002129,1776899432220,-151.0,8.116e-05,2]
[421002130,1776899432230,-150.0,8.118e-05,2]
[421002131,1776899432239,-141006.82260446,8.119e-05,2]
[421002132,1776899432251,-2280.98582552,8.119e-05,2]
[421002133,1776899432263,-6138.41030245,8.119e-05,2]
[421002134,1776899432274,-2419.58059293,8.119e-05,2]
[421002141,1776899438109,-1496.13372,8.119e-05,2]
[421002142,1776899438213,-39132.88238231,8.119e-05,2]
[421002143,1776899438424,-301.76454383,8.119e-05,2]
[421002201,1776899439941,-3740.37471905,8.119e-05,2]
[421002202,1776899439995,-836.81918782,8.119e-05,2]
[421002229,1776899445772,-436.97507537,8.119e-05,2]
[421002230,1776899445783,-443.74249583,8.119e-05,2]
[421002234,1776899446527,-1140.31488953,8.119e-05,2]
[421002235,1776899446543,-11063.5453935,8.119e-05,2]
[421002236,1776899484030,7503.3499,7.649e-05,2]
[421002237,1776899527662,-300.0,8.118e-05,2]
[421002238,1776899527685,-150.0,8.118e-05,2]
[421002239,1776899527707,-75332.0,8.119e-05,2]
[421002240,1776899565437,260.47597966,7.748e-05,2]
[421002241,1776899574733,198.5852,7.649e-05,2]
[421002242,1776899590980,152.0,7.649e-05,3]
[421002243,1776899593543,9848.01,7.649e-05,2]
[421002244,1776899593567,10000.01,7.649e-05,2]
[421002245,1776899593592,10000.01,7.649e-05,2]
[421002246,1776899593617,10000.01,7.649e-05,2]
[421002247,1776899593643,10000.01,7.649e-05,2]
[421002248,1776899593668,10000.01,7.649e-05,2]
[421002249,1776899593693,10000.01,7.649e-05,2]
[421002250,1776899593720,1912026.64702258,7.649e-05,2]
[421002251,1776899598599,-180.69662149,7.649e-05,2]
[421002252,1776899599778,-1223.54195615,7.649e-05,2]
[421002253,1776899601304,-2144.6,7.649e-05,2]
[421002254,1776899651620,252.0,7.649e-05,3]
[421002255,1776899673245,182.33318576,7.648e-05,2]
[421002256,1776899673279,326.14255957,7.648e-05,2]
[421002257,1776899701083,1200.0,7.648e-05,2]
[421002258,1776899701765,150.0,7.648e-05,2]
[421002259,1776899702750,300.0,7.648e-05,2]
[421002260,1776899706798,500.0,7.648e-05,2]
[421002261,1776899706847,500.0,7.648e-05,2]
[421002262,1776899706904,330.11735181,7.648e-05,2]
[421002263,1776899707321,155.0,7.648e-05,3]
[421002264,1776899708070,155.0,7.648e-05,3]
[421002265,1776899719120,500.0,7.648e-05,2]
[421002266,1776899719159,500.0,7.648e-05,2]
[421002267,1776899719200,500.0,7.648e-05,2]
[421002268,1776899719239,500.0,7.648e-05,2]
[421002269,1776899719277,500.0,7.648e-05,2]
[421002270,1776899719318,500.0,7.648e-05,2]
[421002271,1776899719356,500.0,7.648e-05,2]
[421002272,1776899719394,500.0,7.648e-05,2]
[421002273,1776899719432,500.0,7.648e-05,2]
[421002274,1776899719466,500.0,7.648e-05,2]
[421002275,1776899719505,500.0,7.648e-05,2]
[421002276,1776899719547,449.41690286,7.648e-05,2]
[421002277,1776899719574,125.97836066,7.648e-05,2]
[421002278,1776899719612,500.0,7.648e-05,2]
[421002279,1776899719646,500.0,7.648e-05,2]
[421002280,1776899761445,300.0,7.648e-05,2]
[421002281,1776899768926,464.0,7.648e-05,3]
[421002282,1776899787377,200.0,7.6e-05,2]
[421002283,1776899821120,300.0,7.648e-05,2]
[421002284,1776899827590,483.0,7.648e-05,3]
[421002285,1776899848925,195.4544,7.549e-05,2]
[421002286,1776899870611,179.68,6.072e-05,2]
[421002287,1776899881755,150.0,7.648e-05,2]
[421002288,1776899886568,500.0,7.648e-05,2]
[421002289,1776899886632,431.08214626,7.648e-05,2]
[421002290,1776899886823,154.0,7.648e-05,3]
[421002291,1776899895793,300.0,7.648e-05,2]
[421002292,1776899898662,500.0,7.648e-05,2]
[421002293,1776899898701,286.15502928,7.648e-05,2]
[421002294,1776899941116,300.0,7.648e-05,2]
[421002295,1776899947538,540.0,7.648e-05,3]
[421002296,1776899990391,161.0,7.648e-05,3]
[421002297,1776900001132,1200.0,7.648e-05,2]
[421002298,1776900010407,155.0,7.648e-05,3]
[421002299,1776900010480,583.0,7.648e-05,3]
[421002300,1776900061310,300.0,7.648e-05,2]
[421002301,1776900061906,150.0,7.648e-05,2]
[421002302,1776900065130,567.0,7.648e-05,3]
[421002303,1776900071634,156.0,7.648e-05,3]
[421002304,1776900094770,318.6600638,7.496e-05,2]
[421002305,1776900094793,2953.6759362,7.496e-05,2]
[421002306,1776900094945,225.463,7.496e-05,2]
[421002307,1776900181157,300.0,7.648e-05,2]
[421002308,1776900185442,539.0,7.648e-05,3]
[421002310,1776900241848,150.0,7.648e-05,2]
[421002311,1776900247618,500.0,7.648e-05,2]
[421002312,1776900247650,151.75750239,7.648e-05,2]
[421002313,1776900247694,512.0,7.648e-05,3]
[421002314,1776900301185,300.0,7.648e-05,2]
[421002315,1776900301358,1200.0,7.648e-05,2]
[421002316,1776900305425,486.0,7.648e-05,3]
[421002317,1776900361129,300.0,7.648e-05,2]
[421002318,1776900365344,462.0,7.648e-05,3]
[421002319,1776900410332,151.0,7.542e-05,2]
[421002320,1776900417309,325.69213146,7.648e-05,2]
[421002321,1776900421402,300.0,7.648e-05,2]
[421002322,1776900421899,150.0,7.648e-05,2]
[421002325,1776900475454,815.3,7.467e-05,2]
[421002326,1776900481460,160.0,7.648e-05,2]
[421002327,1776900486936,18.12142995,7.648e-05,3]
[421002328,1776900486970,420.87857005,7.648e-05,3]
[421002329,1776900545112,150.0,7.42e-05,2]
[421002330,1776900548971,417.0,7.648e-05,3]
[421002331,1776900598500,9012.13142995,7.549e-05,2]
[421002332,1776900598528,10000.01,7.549e-05,2]
[421002333,1776900598554,10000.01,7.549e-05,2]
[421002334,1776900598579,10000.01,7.549e-05,2]
[421002335,1776900615260,-1200.0,7.548e-05,2]
[421002336,1776900615290,-150.0,7.548e-05,2]
[421002340,1776900631925,-1283.59230351,7.549e-05,2]
[421002341,1776900632034,-836.39291566,7.549e-05,2]
[421002342,1776900632114,-376.36,7.549e-05,2]
[421002343,1776900632126,-102634.10395088,7.549e-05,2]
[421002344,1776900632136,-155.0,7.648e-05,3]
[421002345,1776900632146,-250.0,7.652e-05,2]
[421002346,1776900632156,-193.0,7.655e-05,2]
[421002347,1776900632165,-676.22,7.669e-05,2]
[421002348,1776900632175,-3548.84,7.671e-05,2]
[421002349,1776900632185,-500.0,7.808e-05,2]
[421002350,1776900632195,-250.0,7.826e-05,2]
[421002351,1776900632205,-500.0,7.863e-05,2]
[421002352,1776900632215,-150.0,8.1e-05,2]
[421002353,1776900632225,-1532.0,8.119e-05,2]
[421002354,1776900632235,-1532.0,8.119e-05,2]
[421002355,1776900632246,-1532.0,8.119e-05,2]
[421002356,1776900632256,-1532.0,8.119e-05,2]
[421002357,1776900632266,-151.0,8.119e-05,2]
[421002358,1776900632276,-302.0,8.119e-05,2]
[421002359,1776900632286,-1164.4321133,8.155e-05,2]
[421002360,1776900632296,-933.16,8.18e-05,2]
[421002361,1776900632306,-160.12347697,8.19e-05,2]
[421002362,1776900632315,-500.0,8.19e-05,2]
[421002363,1776900632324,-500.0,8.19e-05,2]
[421002364,1776900632334,-500.0,8.19e-05,2]
[421002365,1776900632344,-311.88887855,8.19e-05,2]
[421002366,1776900632354,-500.0,8.19e-05,2]
[421002367,1776900632364,-458.63773172,8.19e-05,2]
[421002368,1776900632373,-504.06938275,8.19e-05,2]
[421002369,1776900632382,-500.0,8.19e-05,2]
[421002370,1776900632391,-500.0,8.19e-05,2]
[421002371,1776900632400,-500.0,8.19e-05,2]
[421002372,1776900632409,-506.25645231,8.19e-05,2]
[421002373,1776900632419,-571.79586512,8.19e-05,2]
[421002374,1776900632428,-316.89962782,8.19e-05,2]
[421002376,1776900632437,-165.29738432,8.19e-05,2]
[421002378,1776900632447,-500.0,8.19e-05,2]
[421002380,1776900632456,-758.11,8.192e-05,2]
[421002382,1776900632465,-250.0,8.192e-05,2]
[421002384,1776900632475,-500.0,8.192e-05,2]
[421002385,1776900632484,-226.83,8.199e-05,2]
[421002387,1776900632493,-233.61,8.2e-05,2]
[421002390,1776900632503,-280.33,8.2e-05,2]
[421002392,1776900632513,-280.33,8.2e-05,2]
[421002394,1776900632523,-280.33,8.2e-05,2]
[421002395,1776900632541,-280.33,8.2e-05,2]
[421002396,1776900632553,-280.35,8.2e-05,2]
[421002397,1776900632563,-184.7,8.2e-05,2]
[421002398,1776900632572,-184.7,8.2e-05,2]
[421002399,1776900632582,-184.71,8.2e-05,2]
[421002400,1776900632591,-200.0,8.202e-05,2]
[421002401,1776900632600,-500.0,8.219e-05,2]
[421002402,1776900632610,-500.0,8.219e-05,2]
[421002403,1776900632620,-500.0,8.219e-05,2]
[421002404,1776900632629,-500.0,8.219e-05,2]
[421002405,1776900632638,-500.0,8.219e-05,2]
[421002406,1776900632648,-500.0,8.219e-05,2]
[421002407,1776900632657,-557.00138245,8.219e-05,2]
[421002408,1776900632666,-500.0,8.219e-05,2]
[421002409,1776900632675,-500.0,8.219e-05,2]
[421002410,1776900632685,-600.0,8.219e-05,2]
[421002411,1776900632694,-150.0,8.219e-05,2]
[421002412,1776900632703,-268.09039791,8.219e-05,2]
[421002413,1776900632713,-500.0,8.219e-05,2]
[421002414,1776900632722,-500.0,8.219e-05,2]
[421002415,1776900632731,-500.0,8.219e-05,2]
[421002416,1776900632740,-150.0,8.219e-05,2]
[421002417,1776900632750,-150.0,8.219e-05,2]
[421002418,1776900632759,-500.0,8.219e-05,2]
[421002419,1776900632769,-150.0,8.219e-05,2]
[421002420,1776900632778,-500.0,8.219e-05,2]
[421002421,1776900632787,-427.11525013,8.219e-05,2]
[421002422,1776900632797,-150.0,8.219e-05,2]
[421002423,1776900632806,-150.0,8.219e-05,2]
[421002424,1776900632816,-152.05487322,8.219e-05,2]
[421002425,1776900632825,-4373.0,8.219e-05,2]
[421002426,1776900632834,-2000.0,8.219e-05,2]
[421002427,1776900632844,-205.9,8.219e-05,2]
[421002428,1776900632854,-500.0,8.219e-05,2]
[421002429,1776900632863,-364.0,8.225e-05,2]
[421002430,1776900632872,-1101.69807098,8.231e-05,3]
[421002431,1776900632882,-226.61,8.24e-05,2]
[421002432,1776900632891,-175.5,8.261e-05,2]
[421002433,1776900632900,-175.5,8.261e-05,2]
[421002434,1776900632910,-175.5,8.261e-05,2]
[421002435,1776900632919,-175.5,8.261e-05,2]
[421002436,1776900633570,-150.0,8.261e-05,2]
[421002437,1776900633580,-166.66,8.289e-05,2]
[421002438,1776900633590,-250.0,8.29e-05,2]
[421002439,1776900633599,-5000.0,8.303e-05,2]
[421002440,1776900633609,-1680.0,8.303e-05,2]
[421002441,1776900633618,-255.0,8.303e-05,2]
[421002442,1776900633627,-212.89133452,8.304e-05,2]
[421002443,1776900633637,-500.0,8.325e-05,2]
[421002444,1776900633646,-500.0,8.325e-05,2]
[421002445,1776900633655,-151.0,8.353e-05,2]
[421002446,1776900633665,-2788.0,8.381e-05,5]
[421002447,1776900633674,-1600.0,8.403e-05,2]
[421002448,1776900633683,-193.0,8.414e-05,2]
[421002449,1776900633693,-5000.0,8.414e-05,2]
[421002450,1776900633702,-500.0,8.414e-05,2]
[421002451,1776900633711,-349.59067719,8.414e-05,2]
[421002452,1776900633721,-300.0,8.414e-05,2]
[421002453,1776900633730,-300.0,8.414e-05,2]
[421002454,1776900633739,-300.0,8.414e-05,2]
[421002455,1776900633748,-300.0,8.414e-05,2]
[421002456,1776900633762,-5000.0,8.414e-05,2]
[421002457,1776900633771,-5000.0,8.414e-05,2]
[421002458,1776900633781,-5000.0,8.414e-05,2]
[421002459,1776900633790,-193.0,8.414e-05,2]
[421002460,1776900633799,-300.0,8.414e-05,2]
[421002461,1776900633809,-250.0,8.414e-05,2]
[421002462,1776900633818,-500.0,8.414e-05,2]
[421002463,1776900633827,-500.0,8.414e-05,2]
[421002464,1776900633837,-933.16,8.454e-05,2]
[421002465,1776900633847,-578.20924308,8.468e-05,2]
[421002466,1776900633856,-500.0,8.468e-05,2]
[421002467,1776900633866,-1428.38747117,8.468e-05,2]
[421002468,1776900633875,-9552.16786547,8.468e-05,2]
[421002469,1776900633884,-209.40437684,8.468e-05,2]
[421002470,1776900633893,-721.12765535,8.468e-05,2]
[421002471,1776900633903,-200.0,8.468e-05,2]
[421002472,1776900633912,-743.50770149,8.468e-05,2]
[421002473,1776900633922,-151.0,8.468e-05,2]
[421002474,1776900633931,-200.0,8.468e-05,2]
[421002475,1776900633940,-298.80274394,8.468e-05,2]
[421002476,1776900633950,-174.61919141,8.468e-05,2]
[421002477,1776900633959,-152.0,8.468e-05,2]
[421002478,1776900633968,-152.0,8.468e-05,2]
[421002479,1776900633978,-458.97661796,8.468e-05,2]
[421002480,1776900633987,-209.40437684,8.468e-05,2]
[421002481,1776900633997,-279.9045709,8.468e-05,2]
[421002482,1776900634008,-500.0,8.493e-05,2]
[421002483,1776900634018,-500.0,8.523e-05,2]
[421002484,1776900634026,-9905.5980765,8.523e-05,2]
[421002485,1776900634035,-151.0,8.523e-05,2]
[421002486,1776900634045,-617.45362704,8.547e-05,2]
[421002487,1776900634055,-166.66,8.554e-05,2]
[421002488,1776900634065,-500.0,8.578e-05,2]
[421002489,1776900634074,-10272.10520533,8.578e-05,2]
[421002490,1776900634084,-151.0,8.578e-05,2]
[421002491,1776900634093,-602.72977907,8.633e-05,2]
[421002492,1776900634103,-500.0,8.633e-05,2]
[421002493,1776900634113,-151.0,8.633e-05,2]
[421002494,1776900634123,-205.9,8.676e-05,2]
[421002495,1776900634132,-500.0,8.688e-05,2]
[421002496,1776900634143,-381.97730224,8.697e-05,2]
[421002497,1776900634155,-377.0,8.713e-05,2]
[421002498,1776900634165,-45385.11413689,8.728e-05,2]
[421002499,1776900634180,-7868.0007295,8.728e-05,2]
[421002500,1776900634240,-446.149768,8.728e-05,2]
[421002501,1776900634290,-706.95471448,8.728e-05,2]
[421002503,1776900638493,-424.04662,7.973e-05,2]
[421002504,1776900638542,-177.95338,7.973e-05,2]
[421002505,1776900638552,-88.53451864,8.219e-05,2]
[421002506,1776900638597,-411.46548136,8.219e-05,2]
[421002507,1776900638606,-500.0,8.219e-05,2]
[421002508,1776900638615,-375.63451864,8.219e-05,2]
[421002537,1776900640509,-124.36548136,8.219e-05,2]
[421002538,1776900640519,-491.63451864,8.219e-05,2]
[421002539,1776900640565,-8.36548136,8.219e-05,2]
[421002540,1776900640574,-500.0,8.219e-05,2]
[421002541,1776900640583,-500.0,8.219e-05,2]
[421002542,1776900640593,-500.0,8.219e-05,2]
[421002543,1776900640602,-500.0,8.219e-05,2]
[421002544,1776900640611,-500.0,8.219e-05,2]
[421002545,1776900640620,-500.0,8.219e-05,2]
[421002546,1776900640629,-372.01730652,8.219e-05,2]
[421002547,1776900640639,-5072.95444313,8.728e-05,2]
[421002548,1776900640648,-3807.80687747,8.728e-05,2]
[421002549,1776900640689,-7640.76667871,8.728e-05,2]
[421002550,1776900640713,-492.65507974,8.728e-05,2]
[421002551,1776900640789,-883.15138334,8.728e-05,2]
[421002552,1776900640846,-613.35215,8.728e-05,2]
[421002553,1776900640858,-1219.17117707,8.728e-05,2]
[421002554,1776900640870,-542.688,8.728e-05,2]
[421002555,1776900640881,-422.89223244,8.728e-05,2]
[421002556,1776900640892,-1410.10745823,8.728e-05,2]
[421002557,1776900640902,-933.16,8.728e-05,2]
[421002558,1776900640911,-28.2357736,8.736e-05,2]
[421002575,1776900643435,-348.7642264,8.736e-05,2]
[421002576,1776900643444,-638.84891902,8.738e-05,2]
[421002577,1776900643459,-365.49705988,8.738e-05,2]
[421002578,1776900643468,-472.61640263,8.738e-05,2]
[421002579,1776900643478,-1000.0,8.738e-05,2]
[421002580,1776900643487,-1000.0,8.738e-05,2]
[421002581,1776900643496,-500.0,8.738e-05,2]
[421002582,1776900643506,-1000.0,8.738e-05,2]
[421002583,1776900643515,-500.0,8.74e-05,2]
[421002584,1776900643524,-155.0,8.743e-05,2]
[421002585,1776900643534,-500.0,8.743e-05,2]
[421002586,1776900643543,-377.0,8.745e-05,2]
[421002587,1776900643553,-377.0,8.746e-05,2]
[421002589,1776900643562,-402.0,8.748e-05,2]
[421002591,1776900643571,-151.0,8.752e-05,2]
[421002592,1776900643580,-2559.0,8.752e-05,5]
[421002594,1776900643590,-377.0,8.753e-05,2]
[421002595,1776900643599,-377.0,8.756e-05,2]
[421002596,1776900643608,-377.0,8.761e-05,2]
[421002597,1776900643618,-5976.313831,8.763e-05,2]
[421002598,1776900643628,-500.0,8.767e-05,2]
[421002599,1776900643637,-377.0,8.768e-05,2]
[421002600,1776900643647,-377.0,8.769e-05,2]
[421002602,1776900643656,-377.0,8.772e-05,2]
[421002603,1776900643665,-367.0,8.774e-05,2]
[421002605,1776900643674,-377.0,8.777e-05,2]
[421002606,1776900643684,-377.0,8.78e-05,2]
[421002607,1776900643694,-377.0,8.786e-05,2]
[421002608,1776900643703,-377.0,8.787e-05,2]
[421002609,1776900643712,-377.0,8.787e-05,2]
[421002610,1776900643721,-377.0,8.795e-05,2]
[421002611,1776900643731,-377.0,8.796e-05,2]
[421002612,1776900643740,-500.0,8.798e-05,2]
[421002613,1776900643750,-387.0,8.801e-05,2]
[421002614,1776900643760,-377.0,8.802e-05,2]
[421002615,1776900643769,-377.0,8.806e-05,2]
[421002616,1776900643779,-377.0,8.814e-05,2]
[421002617,1776900643788,-166.66,8.819e-05,2]
[421002618,1776900643797,-377.0,8.83e-05,2]
[421002619,1776900643807,-377.0,8.837e-05,2]
[421002620,1776900643817,-377.0,8.847e-05,2]
[421002621,1776900643826,-377.0,8.849e-05,2]
[421002622,1776900643835,-377.0,8.85e-05,2]
[421002623,1776900643845,-377.0,8.851e-05,2]
[421002624,1776900643854,-387.0,8.851e-05,2]
[421002625,1776900643864,-500.0,8.853e-05,2]
[421002626,1776900643874,-419.6969125,8.86e-05,2]
[421002627,1776900643884,-377.0,8.872e-05,2]
[421002628,1776900643893,-377.0,8.878e-05,2]
[421002629,1776900643903,-377.0,8.879e-05,2]
[421002630,1776900643912,-377.0,8.891e-05,2]
[421002631,1776900643922,-377.0,8.896e-05,2]
[421002632,1776900643931,-377.0,8.897e-05,2]
[421002633,1776900643941,-377.0,8.903e-05,2]
[421002634,1776900643950,-377.0,8.905e-05,2]
[421002635,1776900643959,-377.0,8.906e-05,2]
[421002636,1776900643969,-500.0,8.908e-05,2]
[421002637,1776900643978,-377.0,8.91e-05,2]
[421002638,1776900643987,-377.0,8.923e-05,2]
[421002639,1776900643997,-377.0,8.926e-05,2]
[421002640,1776900644006,-377.0,8.929e-05,2]
[421002641,1776900644015,-377.0,8.931e-05,2]
[421002642,1776900644024,-377.0,8.931e-05,2]
[421002643,1776900644034,-377.0,8.938e-05,2]
[421002644,1776900644043,-377.0,8.942e-05,2]
[421002645,1776900644052,-377.0,8.948e-05,2]
[421002646,1776900644062,-377.0,8.953e-05,2]
[421002647,1776900644071,-2760.0,8.959e-05,5]
[421002648,1776900644080,-377.0,8.962e-05,2]
[421002649,1776900644090,-500.0,8.963e-05,2]
[421002650,1776900644100,-377.0,8.97e-05,2]
[421002651,1776900644109,-377.0,8.97e-05,2]
[421002652,1776900644118,-377.0,8.975e-05,2]
[421002653,1776900644127,-377.0,8.982e-05,2]
[421002654,1776900644136,-377.0,8.99e-05,2]
[421002655,1776900644146,-377.0,8.993e-05,2]
[421002656,1776900644155,-2300.0,9e-05,3]
[421002657,1776900644164,-377.0,9.001e-05,2]
[421002658,1776900644174,-933.16,9.002e-05,2]
[421002659,1776900644183,-377.0,9.009e-05,2]
[421002660,1776900644193,-1481.23780761,9.016e-05,2]
[421002661,1776900644202,-217.15233878,9.016e-05,2]
[421002662,1776900644211,-771.01748645,9.016e-05,2]
[421002663,1776900644220,-200.0,9.016e-05,2]
[421002664,1776900644230,-181.08010149,9.016e-05,2]
[421002665,1776900644240,-217.15233878,9.016e-05,2]
[421002666,1776900644250,-293.56604629,9.016e-05,2]
[421002667,1776900644259,-500.0,9.018e-05,2]
[421002668,1776900644269,-377.0,9.027e-05,2]
[421002669,1776900644279,-500.0,9.041e-05,2]
[421002670,1776900644287,-166.66,9.084e-05,2]
[421002671,1776900644298,-179.68,9.108e-05,2]